[Event "GER-ch Youth U16W 2020"]
[Site "Willingen"]
[Date "2020.10.21"]
[Round "3.3"]
[White "Reuter, Elisa"]
[Black "Schnabel, Luise"]
[Result "1-0"]
[ECO "B03"]
[WhiteElo "1860"]
[BlackElo "1867"]
[Annotator "NA RC"]
[PlyCount "61"]
[EventDate "2020.10.20"]
[EventType "swiss"]
[EventRounds "7"]
[EventCountry "GER"]
[SourceTitle "playchess.com"]
[Source "ChessBase"]
[SourceQuality "1"]
[TimeControl "40/5400+30:1800+30"]

1. e4 {[%emt 0:00:00]} Nf6 {[%emt 0:00:00]} 2. e5 {[%emt 0:00:00]} Nd5 {[%emt 0:00:05]} 3. d4 {[%emt 0:00:00]} d6 {[%emt 0:00:10]} 4. exd6 {[%emt 0:00:00]} cxd6 {[%emt 0:00:12]} 5. c4 {[%emt 0:00:00]} Nb6 {[%emt 0:00:09]} 6. Nc3 {[%emt 0:00:00]} g6 {[%emt 0:00:31]} 7. Be3 {[%emt 0:00:00]} Bg7 {[%emt 0:00:26]} 8. Rc1 {[%emt 0:00:09]} O-O {[%emt 0:00:25]} 9. b3 {[%emt 0:00:04]} Nc6 {[%emt 0:01:01]} 10. d5 {[%emt 0:00:11]} Ne5 {[%emt 0:00:53]} 11. Be2 {[%emt 0:00:14]} h5 {[%emt 0:02:00]} 12. h3 {[%emt 0:03:25] B03: Alekhine's Defence: Four Pawns Attack.} e6 {[%emt 0:08:25]} 13. dxe6 {[%emt 0:01:43]} Bxe6 {[%emt 0:01:58]} 14. Nf3 {[%emt 0:04:47]} Rc8 {[%emt 0:08:04]} 15. O-O {[%emt 0:04:25] [#]} f5 $146 {[%emt 0:13:41]} (15... Nc6 $16 {was worth a try.}) ({Predecessor:} 15... a6 16. Qd2 Na8 17. Rfd1 Qa5 18. Nd5 Qxd2 19. Rxd2 Rfe8 20. Rcd1 Bxd5 21. Rxd5 Bf8 {1-0 (47) Bochnicka,V (2052)-Schnabel,L (1772) Kouty nad Desnou 2018}) 16. Qd2 {[%emt 0:03:31]} Qe7 {[%emt 0:08:29]} 17. Nb5 {[%emt 0:01:56]} Rcd8 {[%emt 0:10:03]} 18. Nxa7 {[%emt 0:02:02]} Nbd7 {[%emt 0:01:48]} 19. Nb5 {[%emt 0:04:27]} Nc5 {[%emt 0:05:54]} 20. Bg5 {[%emt 0:06:00]} Bf6 {[%emt 0:07:32]} 21. Bxf6 {[%emt 0:03:41]} Rxf6 {[%emt 0:02:29]} 22. Nc3 {[%emt 0:05:33]} Rff8 {[%emt 0:06:18]} 23. Nd4 {[%emt 0:03:51]} Bf7 {[%emt 0:03:13]} 24. f4 {[%emt 0:02:05]} Nc6 {[%emt 0:02:21]} 25. Bf3 {[%emt 0:01:51]} Qd7 {[%emt 0:04:14]} 26. Nd5 $18 {[%emt 0:02:27]} Bxd5 {[%emt 0:01:26]} 27. Bxd5+ {[%emt 0:00:50]} Kh7 {[%emt 0:00:52]} 28. Nf3 {[%emt 0:01:34]} Ne7 {[%emt 0:03:59]} 29. Ng5+ {[%emt 0:00:45]} Kg7 {[%emt 0:01:15]} 30. b4 {[%emt 0:02:48]} Nxd5 {[%emt 0:01:36]} 31. Qxd5 {[%emt 0:01:35]} 1-0

[Event "GER-ch Youth U16W 2020"]
[Site "Willingen"]
[Date "2020.10.21"]
[Round "3.4"]
[White "Yue, Qizhou"]
[Black "Rudolph, Eva"]
[Result "0-1"]
[ECO "C08"]
[WhiteElo "1775"]
[BlackElo "1836"]
[Annotator "NA RC"]
[PlyCount "84"]
[EventDate "2020.10.20"]
[EventType "swiss"]
[EventRounds "7"]
[EventCountry "GER"]
[SourceTitle "playchess.com"]
[Source "ChessBase"]
[SourceQuality "1"]
[TimeControl "40/5400+30:1800+30"]

1. e4 {[%emt 0:00:00]} e6 {[%emt 0:00:00]} 2. d4 {[%emt 0:00:00]} d5 {[%emt 0:00:00]} 3. Nd2 {[%emt 0:00:00]} c5 {[%emt 0:00:00]} 4. exd5 {[%emt 0:07:53]} exd5 {[%emt 0:00:04]} 5. Ngf3 {[%emt 0:04:31]} Nf6 {[%emt 0:00:41]} 6. Bd3 {[%emt 0:01:10] C08: French Tarrasch: 3...c5 4 exd5 exd5 sidelines.} c4 {[%emt 0:02:56]} 7. Be2 {[%emt 0:00:45]} Nc6 {[%emt 0:02:46]} 8. O-O {[%emt 0:02:24]} Bd6 {[%emt 0:01:03]} 9. Re1 {[%emt 0:04:52]} O-O {[%emt 0:00:21]} 10. Nf1 {[%emt 0:02:07] [#]} Ne4 $146 {[%emt 0:06:17]} ({Predecessor:} 10... h6 11. Ne3 Be6 12. c3 b5 13. g3 Qc7 14. Ng2 Rfe8 15. Bf4 Bf5 16. Nfh4 Bh7 17. Bxd6 Qxd6 {½-½ (75) Jakhari,A (1936)-Budzisz,A (1901) Suwalki 2020}) 11. c3 {[%emt 0:04:13]} Bf5 {[%emt 0:06:46]} (11... f5 $17) 12. Ne3 {[%emt 0:03:39]} Be6 {[%emt 0:04:25]} 13. Bxc4 {[%emt 0:08:25]} Bc7 {[%emt 0:22:57]} (13... dxc4 $11 {keeps the balance.} 14. d5 Ne5 15. dxe6 Nd3 {[%mdl 64] Double Attack} 16. Nxc4 Nexf2) 14. Bd3 {[%emt 0:04:25]} f5 {[%emt 0:04:02]} 15. Nf1 {[%emt 0:05:41]} Qf6 {[%emt 0:02:49]} 16. Ng3 {[%emt 0:03:25]} Kh8 {[%emt 0:09:06]} 17. Nh5 {[%emt 0:05:18]} Qf7 {[%emt 0:05:17]} 18. Ng5 {[%emt 0:06:51]} Nxg5 {[%emt 0:04:41]} 19. Bxg5 {[%emt 0:00:52]} f4 {[%emt 0:03:23]} 20. Qf3 {[%emt 0:20:51]} Bf5 {[%emt 0:00:43]} 21. Nxf4 {[%emt 0:09:14]} Bxf4 {[%emt 0:01:21]} 22. Bxf4 {[%emt 0:00:25]} Bxd3 {[%emt 0:00:26]} 23. Qxd3 {[%emt 0:00:12]} Qxf4 {[%emt 0:00:25]} 24. Re2 {[%emt 0:00:37]} Rae8 {[%emt 0:01:48]} 25. f3 {[%emt 0:01:31]} Qf7 {[%emt 0:07:41]} 26. Rae1 {[%emt 0:00:53]} Kg8 {[%emt 0:00:58]} 27. Qb5 {[%emt 0:00:33]} Rxe2 {[%emt 0:00:59]} 28. Qxe2 {[%emt 0:00:14]} Rc8 {[%emt 0:01:27]} 29. a3 {[%emt 0:01:36]} Rc7 {[%emt 0:01:59]} 30. Qd3 {[%emt 0:00:51]} Re7 {[%emt 0:01:18]} 31. Rxe7 {[%emt 0:00:19]} Qxe7 {[%emt 0:00:02]} 32. Kf1 {[%emt 0:00:22]} Qd7 {[%emt 0:02:24]} 33. b4 {[%emt 0:00:50]} Ne7 {[%emt 0:01:22]} 34. c4 {[%emt 0:00:46]} dxc4 {[%emt 0:01:57]} 35. Qxc4+ $19 {[%emt 0:00:06]} Qd5 {[%emt 0:00:12]} 36. Qxd5+ {[%emt 0:00:47]} Nxd5 {[%emt 0:00:08]} 37. Ke2 {[%emt 0:00:21]} Kf7 {[%emt 0:00:11]} 38. g3 {[%emt 0:00:10]} Ke6 {[%emt 0:00:43]} 39. Kd3 {[%emt 0:00:17]} b5 {[%emt 0:01:17]} 40. f4 {[%emt 0:01:00]} Kf5 {[%emt 0:01:24]} 41. h3 {[%emt 0:30:31]} h5 {[%emt 0:30:28]} 42. h4 {[%emt 0:00:57]} g6 {[%emt 0:00:37]} 0-1

[Event "GER-ch Youth U16W 2020"]
[Site "Willingen"]
[Date "2020.10.21"]
[Round "3.6"]
[White "Kalina, Lena"]
[Black "Doll, Rebecca"]
[Result "1-0"]
[ECO "D35"]
[WhiteElo "1561"]
[BlackElo "1808"]
[Annotator "NA RC"]
[PlyCount "119"]
[EventDate "2020.10.20"]
[EventType "swiss"]
[EventRounds "7"]
[EventCountry "GER"]
[SourceTitle "playchess.com"]
[Source "ChessBase"]
[SourceQuality "1"]
[TimeControl "40/5400+30:1800+30"]

1. d4 {[%emt 0:00:00]} d5 {[%emt 0:00:00]} 2. c4 {[%emt 0:00:00]} e6 {[%emt 0:00:00]} 3. Nc3 {[%emt 0:00:00]} Nf6 {[%emt 0:00:00]} 4. cxd5 {[%emt 0:00:00]} exd5 {[%emt 0:00:00]} 5. Bg5 {[%emt 0:00:00]} Nbd7 {[%emt 0:00:10]} 6. e3 {[%emt 0:00:16]} c6 {[%emt 0:00:07] 6...Be7 is more advanced technology.} 7. Bd3 {[%emt 0:00:14]} Be7 {[%emt 0:00:08]} 8. h3 {[%emt 0:00:18] D35: Queen's Gambit Declined: Exchange Variation.} Nb6 {[%emt 0:01:38]} 9. Bf4 {[%emt 0:03:15]} Be6 {[%emt 0:05:35]} 10. Qc2 {[%emt 0:02:30]} Bd6 {[%emt 0:02:30]} 11. Bxd6 {[%emt 0:06:05]} Qxd6 {[%emt 0:00:33] [#]} 12. Nf3 $146 {[%emt 0:02:07]} ({Predecessor:} 12. Nge2 Qe7 13. O-O-O O-O-O 14. Kb1 Kb8 15. Rc1 Rhe8 16. Na4 Nxa4 17. Qxa4 Bd7 18. Qc2 {½-½ (56) Bischoff,K (2569)-Shengelia,D (2566) Austria 2010}) 12... g6 {[%emt 0:04:36]} 13. Ne5 {[%emt 0:04:22]} a6 {[%emt 0:04:24]} 14. O-O {[%emt 0:08:45]} O-O {[%emt 0:03:08]} 15. b3 {[%emt 0:09:52]} Nh5 {[%emt 0:05:03]} 16. f4 {[%emt 0:07:01]} Ng7 {[%emt 0:00:46]} 17. g4 {[%emt 0:04:06]} f6 {[%emt 0:01:44]} 18. Nf3 {[%emt 0:02:23]} Rac8 {[%emt 0:06:21]} 19. Nh4 {[%emt 0:07:04]} c5 {[%emt 0:08:13]} 20. Rac1 {[%emt 0:04:26]} cxd4 {[%emt 0:03:34]} 21. exd4 {[%emt 0:00:47]} Qb4 {[%emt 0:00:38]} 22. Nf3 {[%emt 0:03:42]} Rc7 {[%emt 0:02:38]} 23. Qd2 {[%emt 0:01:28]} Re8 {[%emt 0:12:16]} 24. Ne2 {[%emt 0:03:24]} Qe7 {[%emt 0:09:41]} 25. Rxc7 {[%emt 0:02:43]} Qxc7 {[%emt 0:00:08]} 26. Rc1 {[%emt 0:00:14]} Qd6 {[%emt 0:01:18]} 27. Kg2 {[%emt 0:07:14]} Bd7 {[%emt 0:02:23]} 28. Ng3 {[%emt 0:04:17]} Ne6 {[%emt 0:08:04]} 29. f5 {[%emt 0:02:23]} Nf4+ {[%emt 0:00:30]} 30. Kh2 {[%emt 0:02:05]} gxf5 $2 {[%emt 0:03:46]} (30... Nxd3 $19 {has better winning chances.} 31. Rf1 Nf4 32. fxg6 hxg6) 31. gxf5 {[%emt 0:00:36]} Nh5 {[%emt 0:05:02]} 32. Rg1 {[%emt 0:01:42]} Kh8 {[%emt 0:03:53]} 33. Qh6 {[%emt 0:05:33]} Nxg3 {[%emt 0:00:32] [#]} 34. Rxg3 $2 {[%emt 0:00:18]} (34. Ne5 $1 $18 Nh5 35. Kh1 Rxe5 36. dxe5) 34... Rg8 {[%emt 0:00:46] [#]} (34... Qf8 $16 35. Qh5 Re7) 35. Qh4 $2 {[%emt 0:00:13]} (35. Ne5 $1 $18 {[%cal Re5f7][%mdl 512]} Be8 (35... fxe5 36. Qxd6) 36. Ng6+ Bxg6 37. fxg6) 35... Nc8 {[%emt 0:01:57]} 36. Kg2 {[%emt 0:01:23]} Rxg3+ {[%emt 0:02:12]} 37. Qxg3 {[%emt 0:00:06]} Qxg3+ {[%emt 0:02:05]} 38. Kxg3 {[%emt 0:00:06]} Nd6 {[%emt 0:00:06]} 39. Kf4 {[%emt 0:01:02]} Bb5 {[%emt 0:01:01]} 40. Ne1 {[%emt 0:03:23]} Kg7 {[%emt 0:00:48]} 41. a4 {[%emt 0:30:59]} Bxd3 {[%emt 0:06:37]} 42. Nxd3 {[%emt 0:00:00]} a5 $1 {[%emt 0:07:09]} 43. Nc5 {[%emt 0:00:00]} Kf7 {[%emt 0:00:23] [#]} (43... Kh6 $11) 44. Ne6 $1 {[%emt 0:00:00]} Ne8 $2 {[%emt 0:00:15]} (44... Ke8 $16 {is more resistant.}) 45. Nd8+ $18 {[%emt 0:00:00] Double Attack} Ke7 {[%emt 0:04:14]} 46. Nxb7 {[%emt 0:00:00]} Kd7 {[%emt 0:00:45]} 47. Nxa5 {[%emt 0:00:00]} Kc7 {[%emt 0:00:08]} 48. b4 {[%emt 0:00:00]} Kb6 {[%emt 0:00:18]} 49. Nb3 {[%emt 0:00:00]} Nd6 {[%emt 0:00:14]} 50. Nc5 {[%emt 0:00:00]} Ne8 {[%emt 0:00:34]} 51. Kg4 {[%emt 0:00:00]} Ka7 {[%emt 0:00:56]} 52. a5 {[%emt 0:00:00]} Nd6 {[%emt 0:00:10]} 53. Nd7 {[%emt 0:00:00]} Ne4 {[%emt 0:00:27]} 54. b5 Ka8 {[%emt 0:00:26]} 55. Nb6+ {[%emt 0:00:00]} Kb7 56. Nxd5 {[%emt 0:00:00]} Kc8 {[%emt 0:00:43]} 57. Kf4 {[%emt 0:00:00]} Nd6 {[%emt 0:00:05]} 58. Nxf6 {[%emt 0:00:00]} Nxb5 {[%emt 0:00:08]} 59. Nxh7 {[%emt 0:00:00]} Nxd4 {[%emt 0:00:06]} 60. f6 {[%emt 0:00:00]} 1-0

[Event "GER-ch Youth U16W 2020"]
[Site "Willingen"]
[Date "2020.10.21"]
[Round "3.7"]
[White "Schneider, Katharina"]
[Black "Pavlov, Liliane"]
[Result "0-1"]
[ECO "B90"]
[WhiteElo "1779"]
[BlackElo "1744"]
[Annotator "NA RC"]
[PlyCount "98"]
[EventDate "2020.10.20"]
[EventType "swiss"]
[EventRounds "7"]
[EventCountry "GER"]
[SourceTitle "playchess.com"]
[Source "ChessBase"]
[SourceQuality "1"]
[TimeControl "40/5400+30:1800+30"]

1. e4 {[%emt 0:00:00]} c5 {[%emt 0:00:00]} 2. Nf3 {[%emt 0:00:00]} d6 {[%emt 0:00:00]} 3. d4 {[%emt 0:00:00]} cxd4 {[%emt 0:00:00]} 4. Nxd4 {[%emt 0:00:07]} Nf6 {[%emt 0:00:00]} 5. Nc3 {[%emt 0:00:35]} a6 {[%emt 0:00:07]} 6. f3 {[%emt 0:00:24]} e5 {[%emt 0:00:09]} 7. Nb3 {[%emt 0:00:18]} Be7 {[%emt 0:00:24]} 8. Be3 {[%emt 0:00:55]} Be6 {[%emt 0:00:22]} 9. Qd2 {[%emt 0:01:25]} O-O {[%emt 0:00:39]} 10. O-O-O {[%emt 0:00:36]} a5 {[%emt 0:01:59]} 11. Kb1 {[%emt 0:02:06]} a4 {[%emt 0:02:09]} 12. Nc1 {[%emt 0:00:57]} Ra5 {[%emt 0:03:38]} 13. h4 {[%emt 0:13:16]} d5 {[%emt 0:03:23]} 14. exd5 {[%emt 0:01:40]} Nxd5 {[%emt 0:01:02]} 15. Nxd5 {[%emt 0:01:28]} Rxd5 {[%emt 0:02:32]} 16. Bd3 {[%emt 0:04:29]} a3 {[%emt 0:10:32]} 17. g4 {[%emt 0:13:33]} axb2 {[%emt 0:05:33]} 18. Nb3 {[%emt 0:01:02]} Nc6 {[%emt 0:02:47]} 19. c4 {[%emt 0:08:29]} Rd7 {[%emt 0:11:07]} 20. Nc5 {[%emt 0:02:04]} Bxc5 {[%emt 0:01:05]} 21. Bxc5 {[%emt 0:00:05]} Re8 {[%emt 0:00:22]} 22. Qc2 {[%emt 0:07:38]} h6 {[%emt 0:01:32]} 23. g5 {[%emt 0:01:19]} h5 {[%emt 0:01:28]} 24. Bh7+ {[%emt 0:07:35]} Kh8 {[%emt 0:00:11]} 25. Rxd7 {[%emt 0:06:29]} Qxd7 {[%emt 0:01:13]} 26. Rd1 {[%emt 0:01:49]} Nd4 {[%emt 0:01:48]} 27. Bxd4 {[%emt 0:01:03]} exd4 {[%emt 0:00:08]} 28. Bd3 {[%emt 0:01:09]} Rc8 {[%emt 0:01:27]} 29. Kxb2 {[%emt 0:01:57]} b5 {[%emt 0:00:45]} 30. Rc1 {[%emt 0:03:31]} bxc4 {[%emt 0:04:12]} 31. Bxc4 {[%emt 0:00:11]} Rxc4 {[%emt 0:01:47]} 32. Qd2 {[%emt 0:00:44]} Qb5+ {[%emt 0:01:45]} 33. Ka1 {[%emt 0:00:10]} Rxc1+ {[%emt 0:00:55]} 34. Qxc1 {[%emt 0:00:04]} d3 {[%emt 0:02:29]} 35. Qd2 {[%emt 0:00:42]} Qc4 {[%emt 0:00:19]} 36. Kb1 {[%emt 0:00:21]} Qxa2+ {[%emt 0:00:30]} 37. Qxa2 {[%emt 0:00:25]} Bxa2+ {[%emt 0:00:07]} 38. Kxa2 {[%emt 0:00:14]} d2 {[%emt 0:00:06]} 39. Kb2 {[%emt 0:00:03]} d1=Q {[%emt 0:00:08]} 40. f4 {[%emt 0:00:09]} Qd4+ {[%emt 0:00:30]} 41. Kb1 {[%emt 0:30:11]} Qxf4 {[%emt 0:30:10]} 42. Ka1 {[%emt 0:00:13]} Qxh4 {[%emt 0:00:08]} 43. Kb1 {[%emt 0:00:06]} Qxg5 {[%emt 0:00:11]} 44. Kc2 {[%emt 0:00:06]} Qg3 {[%emt 0:00:08]} 45. Kd1 {[%emt 0:00:07]} Qg2 {[%emt 0:00:08]} 46. Kc1 {[%emt 0:00:07]} h4 {[%emt 0:00:05]} 47. Kb1 {[%emt 0:00:06]} h3 {[%emt 0:00:04]} 48. Ka1 {[%emt 0:00:02]} h2 {[%emt 0:00:07]} 49. Kb1 {[%emt 0:00:03]} h1=R# {[%emt 0:00:11]} 0-1

[Event "GER-ch Youth U16W 2020"]
[Site "Willingen"]
[Date "2020.10.21"]
[Round "3.8"]
[White "Basovskiy, Jana"]
[Black "Jacoby, Angelina"]
[Result "1/2-1/2"]
[ECO "B01"]
[WhiteElo "1760"]
[BlackElo "1630"]
[Annotator "NA RC"]
[PlyCount "97"]
[EventDate "2020.10.20"]
[EventType "swiss"]
[EventRounds "7"]
[EventCountry "GER"]
[SourceTitle "playchess.com"]
[Source "ChessBase"]
[SourceQuality "1"]
[TimeControl "40/5400+30:1800+30"]

1. e4 {[%emt 0:00:00]} d5 {[%emt 0:00:00]} 2. exd5 {[%emt 0:00:00]} Qxd5 {[%emt 0:00:00]} 3. Nc3 {[%emt 0:00:00]} Qd8 {[%emt 0:00:11]} 4. d4 {[%emt 0:00:38]} Nf6 {[%emt 0:00:33]} 5. Nf3 {[%emt 0:00:15]} Bg4 {[%emt 0:00:20]} 6. h3 {[%emt 0:00:54]} Bxf3 {[%emt 0:00:11]} 7. Qxf3 {[%emt 0:00:09]} c6 {[%emt 0:00:08]} 8. Be3 {[%emt 0:00:09]} e6 {[%emt 0:00:19]} 9. Bd3 {[%emt 0:03:04]} Nbd7 {[%emt 0:01:02]} 10. O-O-O {[%emt 0:00:28]} Bb4 {[%emt 0:00:33]} 11. Ne2 {[%emt 0:00:44]} Qa5 {[%emt 0:11:01]} 12. Kb1 {[%emt 0:01:01]} Qd5 {[%emt 0:07:37]} 13. Qxd5 {[%emt 0:10:53]} exd5 {[%emt 0:04:42]} 14. Bf4 {[%emt 0:05:02]} O-O-O {[%emt 0:02:55]} 15. Ng3 {[%emt 0:15:43]} g6 {[%emt 0:03:55]} 16. c3 {[%emt 0:01:57]} Ba5 {[%emt 0:05:58]} 17. Rhe1 {[%emt 0:01:00]} Rde8 {[%emt 0:04:59]} 18. Nf1 {[%emt 0:05:17]} Rxe1 {[%emt 0:03:31]} 19. Rxe1 {[%emt 0:00:00]} Re8 {[%emt 0:00:00]} 20. Rxe8+ {[%emt 0:03:17]} Nxe8 {[%emt 0:02:48]} 21. Nd2 {[%emt 0:00:47]} f5 {[%emt 0:03:27]} 22. Kc2 {[%emt 0:07:18]} Ndf6 {[%emt 0:03:51]} 23. Be5 {[%emt 0:02:37]} Kd7 {[%emt 0:04:10]} 24. Be2 {[%emt 0:08:51]} Bd8 {[%emt 0:05:17]} 25. Nb3 {[%emt 0:08:42]} b6 {[%emt 0:01:47]} 26. Nd2 {[%emt 0:02:33]} Nd6 {[%emt 0:00:49]} 27. f3 {[%emt 0:01:11]} Nh5 {[%emt 0:04:19]} 28. g4 {[%emt 0:06:51]} Nf6 {[%emt 0:03:14]} 29. Bd3 {[%emt 0:04:28]} fxg4 {[%emt 0:03:36]} 30. hxg4 {[%emt 0:00:01]} Nf7 {[%emt 0:06:29]} 31. Bf4 {[%emt 0:01:42]} Ne8 {[%emt 0:02:04]} 32. Kd1 {[%emt 0:02:39]} Ng5 {[%emt 0:01:22]} 33. Bg3 {[%emt 0:02:57]} Nd6 {[%emt 0:02:06]} 34. Ke2 {[%emt 0:01:14]} Ne6 {[%emt 0:06:40]} 35. f4 {[%emt 0:01:15]} Ng7 {[%emt 0:01:32]} 36. Nf3 {[%emt 0:00:47]} Nf7 {[%emt 0:01:08]} 37. Ke3 {[%emt 0:01:54]} Ke6 {[%emt 0:01:53]} 38. c4 {[%emt 0:01:09]} Be7 {[%emt 0:02:08]} 39. cxd5+ {[%emt 0:01:19]} cxd5 {[%emt 0:00:56]} 40. Bc2 {[%emt 0:00:33]} Bd6 {[%emt 0:01:15]} 41. Bh4 {[%emt 0:06:15]} h5 {[%emt 0:08:54]} 42. Bxg6 {[%emt 0:07:17]} hxg4 {[%emt 0:00:27]} 43. Ne5 {[%emt 0:02:22]} Bxe5 {[%emt 0:05:48]} 44. dxe5 {[%emt 0:04:41]} Nf5+ {[%emt 0:00:49]} 45. Bxf5+ {[%emt 0:00:01]} Kxf5 {[%emt 0:00:26]} 46. Bg3 {[%emt 0:00:21]} Nh6 {[%emt 0:04:18]} 47. Be1 {[%emt 0:03:48]} Ke6 {[%emt 0:03:06]} 48. Kf2 {[%emt 0:02:50]} Nf5 {[%emt 0:00:49]} 49. Bd2 {[%emt 0:00:43]} 1/2-1/2

[Event "GER-ch Youth U16W 2020"]
[Site "Willingen"]
[Date "2020.10.21"]
[Round "3.9"]
[White "Schwegler, Jelena"]
[Black "Falke, Ornella"]
[Result "0-1"]
[ECO "C01"]
[WhiteElo "1539"]
[BlackElo "1500"]
[Annotator "NA RC"]
[PlyCount "50"]
[EventDate "2020.10.20"]
[EventType "swiss"]
[EventRounds "7"]
[EventCountry "GER"]
[SourceTitle "playchess.com"]
[Source "ChessBase"]
[SourceQuality "1"]
[TimeControl "40/5400+30:1800+30"]

1. e4 {[%emt 0:00:00]} e6 {[%emt 0:00:00]} 2. d4 {[%emt 0:00:00]} d5 {[%emt 0:00:00]} 3. exd5 {[%emt 0:02:09]} exd5 {[%emt 0:01:14]} 4. Bd3 {[%emt 0:01:51]} c5 {[%emt 0:01:17]} 5. c3 {[%emt 0:06:47]} Nf6 {[%emt 0:02:38]} 6. Bf4 {[%emt 0:01:52]} Nc6 {[%emt 0:01:49]} 7. Bc2 {[%emt 0:08:17]} Qb6 {[%emt 0:03:06]} 8. Bb3 {[%emt 0:06:00]} cxd4 {[%emt 0:02:18]} 9. cxd4 {[%emt 0:00:23]} Qxd4 {[%emt 0:04:41]} 10. Qe2+ {[%emt 0:04:32]} Be6 {[%emt 0:03:41]} 11. Be3 {[%emt 0:00:39]} Bb4+ {[%emt 0:00:51]} 12. Kf1 {[%emt 0:02:35]} Qe5 {[%emt 0:02:07]} 13. Nf3 {[%emt 0:01:37]} Qd6 {[%emt 0:01:57]} 14. Nbd2 {[%emt 0:03:04]} h6 {[%emt 0:03:43]} 15. Nd4 {[%emt 0:01:27]} O-O {[%emt 0:03:54]} 16. h3 {[%emt 0:01:12]} Rfe8 {[%emt 0:01:44]} 17. N2f3 {[%emt 0:01:28]} a6 {[%emt 0:09:36]} 18. Rc1 {[%emt 0:01:38]} Ne4 {[%emt 0:00:50]} 19. g4 {[%emt 0:01:17]} Re7 {[%emt 0:03:57]} 20. Ba4 {[%emt 0:01:19]} Bd7 {[%emt 0:02:22]} 21. a3 {[%emt 0:01:57]} Ba5 {[%emt 0:01:52]} 22. b4 {[%emt 0:02:03]} Bc7 {[%emt 0:00:48]} 23. Qd3 {[%emt 0:00:42]} Nxd4 {[%emt 0:01:46]} 24. Bxd7 {[%emt 0:01:12]} Nxf3 {[%emt 0:00:21]} 25. Bf5 {[%emt 0:01:21]} Rae8 {[%emt 0:01:01]} 0-1

[Event "GER-ch Youth U16W 2020"]
[Site "Willingen"]
[Date "2020.10.21"]
[Round "3.10"]
[White "Klahold, Rona"]
[Black "Dohon, Maria-Johanna"]
[Result "1-0"]
[ECO "A45"]
[WhiteElo "1551"]
[BlackElo "1536"]
[Annotator "NA RC"]
[PlyCount "110"]
[EventDate "2020.10.20"]
[EventType "swiss"]
[EventRounds "7"]
[EventCountry "GER"]
[SourceTitle "playchess.com"]
[Source "ChessBase"]
[SourceQuality "1"]
[TimeControl "40/5400+30:1800+30"]

1. d4 {[%emt 0:00:00]} Nf6 {[%emt 0:00:00]} 2. Bf4 {[%emt 0:00:00]} e6 {[%emt 0:00:00]} 3. e3 {[%emt 0:00:14]} c5 {[%emt 0:00:02]} 4. Nf3 {[%emt 0:00:23]} Nc6 {[%emt 0:00:21]} 5. Bd3 {[%emt 0:01:25]} d5 {[%emt 0:01:14]} 6. c3 {[%emt 0:00:37]} Bd6 {[%emt 0:02:20]} 7. Bg3 {[%emt 0:01:41]} O-O {[%emt 0:00:56]} 8. Nbd2 {[%emt 0:01:04]} h6 {[%emt 0:03:07]} 9. Ne5 {[%emt 0:03:57]} Qc7 {[%emt 0:02:16]} 10. Nxc6 {[%emt 0:03:57]} Qxc6 {[%emt 0:02:41]} 11. Nf3 {[%emt 0:01:59]} b6 {[%emt 0:04:53]} 12. Qe2 {[%emt 0:06:57]} a6 {[%emt 0:06:34]} 13. Bxd6 {[%emt 0:06:01]} Qxd6 {[%emt 0:00:11]} 14. O-O {[%emt 0:00:10]} Re8 {[%emt 0:05:07]} 15. a4 {[%emt 0:05:11]} Bb7 {[%emt 0:01:49]} 16. Rfd1 {[%emt 0:03:37]} c4 {[%emt 0:07:35]} 17. Bc2 {[%emt 0:00:24]} b5 {[%emt 0:03:11]} 18. Qe1 {[%emt 0:06:35]} Nd7 {[%emt 0:05:56]} 19. e4 {[%emt 0:08:50]} dxe4 {[%emt 0:04:20]} 20. Bxe4 {[%emt 0:00:56]} Bxe4 {[%emt 0:00:24]} 21. Qxe4 {[%emt 0:00:03]} Nf6 {[%emt 0:00:43]} 22. Qe5 {[%emt 0:05:03]} Qxe5 {[%emt 0:03:25]} 23. Nxe5 {[%emt 0:00:12]} Nd5 {[%emt 0:01:09]} 24. Ra3 {[%emt 0:03:29]} Rec8 {[%emt 0:03:58]} 25. axb5 {[%emt 0:02:56]} axb5 {[%emt 0:00:21]} 26. Rda1 {[%emt 0:00:08]} Nc7 {[%emt 0:01:26]} 27. Kf1 {[%emt 0:05:24]} Rxa3 {[%emt 0:05:24]} 28. Rxa3 {[%emt 0:00:11]} Ra8 {[%emt 0:00:42]} 29. Rxa8+ {[%emt 0:00:47]} Nxa8 {[%emt 0:00:34]} 30. Ke2 {[%emt 0:00:54]} Kf8 {[%emt 0:00:42]} 31. Ke3 {[%emt 0:01:24]} Ke7 {[%emt 0:02:13]} 32. Ke4 {[%emt 0:01:35]} Nb6 {[%emt 0:01:02]} 33. Nc6+ {[%emt 0:01:18]} Kd6 {[%emt 0:01:30]} 34. Na7 {[%emt 0:03:01]} Na4 {[%emt 0:04:43]} 35. Nxb5+ {[%emt 0:03:03]} Kd7 {[%emt 0:00:59]} 36. d5 {[%emt 0:01:47]} exd5+ {[%emt 0:05:25]} 37. Kxd5 {[%emt 0:00:04]} Nxb2 {[%emt 0:00:33]} 38. Nd4 {[%emt 0:08:52]} g6 {[%emt 0:10:11]} 39. Nf3 {[%emt 0:04:42]} f6 {[%emt 0:01:48]} 40. Nd2 {[%emt 0:01:02]} Nd1 {[%emt 0:02:09]} 41. Kxc4 {[%emt 0:30:41]} Nxf2 {[%emt 0:30:24]} 42. Kd5 {[%emt 0:00:30]} Ng4 {[%emt 0:00:36]} 43. Ne4 {[%emt 0:05:18]} f5 {[%emt 0:01:44]} 44. Nc5+ {[%emt 0:00:38]} Ke7 {[%emt 0:00:25]} 45. Nd3 {[%emt 0:01:21]} Nf6+ {[%emt 0:00:33]} 46. Kd4 {[%emt 0:01:09]} Kd6 {[%emt 0:00:46]} 47. c4 {[%emt 0:00:23]} Nd7 {[%emt 0:00:32]} 48. c5+ {[%emt 0:02:18]} Kc7 {[%emt 0:00:39]} 49. Ne5 {[%emt 0:01:19]} g5 {[%emt 0:00:56]} 50. Nxd7 {[%emt 0:00:00]} Kxd7 {[%emt 0:00:00]} 51. Ke5 {[%emt 0:00:00]} f4 {[%emt 0:00:00]} 52. h3 {[%emt 0:00:00]} Kc6 {[%emt 0:00:00]} 53. Kf5 {[%emt 0:00:00]} Kxc5 {[%emt 0:00:00]} 54. Kg6 {[%emt 0:00:00]} Kd4 {[%emt 0:00:00]} 55. Kxh6 {[%emt 0:00:00]} Kd5 1-0